[Event "*** Titled Tuesday Blitz"]
[Site "Chess.com"]
[Date "2019.09.03"]
[Round "2"]
[White "dawnrule"]
[Black "plumalka"]
[Result "1-0"]
[WhiteElo "2402"]
[BlackElo "2053"]
[TimeControl "180+2"]
[EndTime "15:22:35 PDT"]
[Termination "dawnrule won by resignation"]

1. d4 {[%clk 0:03:01.9]} 1... Nf6 {[%clk 0:03:00.3]} 2. Nf3 {[%clk 0:03:03.5]}
2... d6 {[%clk 0:03:00.7]} 3. Bf4 {[%clk 0:03:04.4]} 3... Nbd7 {[%clk
0:03:01.9]} 4. Nbd2 {[%clk 0:02:59.8]} 4... g6 {[%clk 0:03:02.8]} 5. h3 {[%clk
0:02:59.7]} 5... Bg7 {[%clk 0:03:03.9]} 6. e3 {[%clk 0:03:01]} 6... O-O {[%clk
0:03:04.8]} 7. Bh2 {[%clk 0:03:01.6]} 7... Re8 {[%clk 0:03:02.4]} 8. Be2 {[%clk
0:02:59.8]} 8... e5 {[%clk 0:03:03.2]} 9. O-O {[%clk 0:03:00.6]} 9... c6 {[%clk
0:03:04]} 10. c4 {[%clk 0:02:47.6]} 10... e4 {[%clk 0:02:56.5]} 11. Ne1 {[%clk
0:02:44.2]} 11... d5 {[%clk 0:02:55.8]} 12. Rc1 {[%clk 0:02:44.3]} 12... Qe7
{[%clk 0:02:38.6]} 13. cxd5 {[%clk 0:02:39.4]} 13... Nxd5 {[%clk 0:02:38.5]} 14.
Nc4 {[%clk 0:02:35.7]} 14... f5 {[%clk 0:02:34.4]} 15. Qb3 {[%clk 0:02:26.5]}
15... N7b6 {[%clk 0:02:26]} 16. Nd6 {[%clk 0:02:07.3]} 16... Rf8 {[%clk
0:02:16.1]} 17. a4 {[%clk 0:02:05.9]} 17... Be6 {[%clk 0:02:14.8]} 18. a5 {[%clk
0:01:47.7]} 18... Nc8 {[%clk 0:02:13.1]} 19. Qxb7 {[%clk 0:01:41.7]} 19... Qxb7
{[%clk 0:01:36.2]} 20. Nxb7 {[%clk 0:01:42.2]} 20... Nce7 {[%clk 0:01:37.1]} 21.
Nc2 {[%clk 0:01:25.6]} 21... f4 {[%clk 0:01:31.8]} 22. Bc4 {[%clk 0:01:20.6]}
22... f3 {[%clk 0:01:30.9]} 23. Nc5 {[%clk 0:01:11.9]} 23... Bf5 {[%clk
0:01:24.4]} 24. g4 {[%clk 0:01:09.2]} 24... Bc8 {[%clk 0:01:16.3]} 25. Nb4
{[%clk 0:01:06.8]} 25... h5 {[%clk 0:01:04]} 26. Nxc6 {[%clk 0:01:04.5]} 26...
Kh7 {[%clk 0:01:05.2]} 27. Nxe7 {[%clk 0:01:00.7]} 27... Nxe7 {[%clk 0:01:07.1]}
28. Bd6 {[%clk 0:00:59.1]} 28... Bf6 {[%clk 0:01:04.1]} 29. Nxe4 {[%clk
0:00:55.2]} 29... Kg7 {[%clk 0:00:38.9]} 30. g5 {[%clk 0:00:50]} 30... Bxg5
{[%clk 0:00:37.4]} 31. Nxg5 {[%clk 0:00:50.8]} 31... Rf5 {[%clk 0:00:36.1]} 32.
Bxe7 {[%clk 0:00:51.1]} 32... Bd7 {[%clk 0:00:34.3]} 33. e4 {[%clk 0:00:43.7]}
33... Rf4 {[%clk 0:00:35]} 34. Bd5 {[%clk 0:00:43.4]} 34... Re8 {[%clk 0:00:35]}
35. Bd6 {[%clk 0:00:43.5]} 35... Rh4 {[%clk 0:00:35.4]} 36. Rc7 {[%clk
0:00:43.6]} 36... Kh6 {[%clk 0:00:35.3]} 37. Nf7+ {[%clk 0:00:39]} 37... Kg7
{[%clk 0:00:34]} 38. Rxd7 {[%clk 0:00:40.2]} 1-0

[Event "*** Titled Tuesday Blitz"]
[Site "Chess.com"]
[Date "2019.09.03"]
[Round "2"]
[White "Mikhail_Golubev"]
[Black "Svet99"]
[Result "0-1"]
[WhiteElo "2402"]
[BlackElo "2142"]
[TimeControl "180+2"]
[EndTime "15:22:46 PDT"]
[Termination "Svet99 won on time"]

1. e4 {[%clk 0:03:01.9]} 1... c6 {[%clk 0:03:00.2]} 2. d4 {[%clk 0:03:02.4]}
2... d5 {[%clk 0:03:00.7]} 3. Nc3 {[%clk 0:03:03.5]} 3... dxe4 {[%clk 0:03:00]}
4. Nxe4 {[%clk 0:03:04.4]} 4... Bf5 {[%clk 0:03:00.5]} 5. Ng3 {[%clk 0:03:05.3]}
5... Bg6 {[%clk 0:03:01]} 6. Nh3 {[%clk 0:03:06.3]} 6... Nd7 {[%clk 0:02:55.9]}
7. Nf4 {[%clk 0:03:03.5]} 7... e5 {[%clk 0:02:56.1]} 8. dxe5 {[%clk 0:03:01.6]}
8... Qa5+ {[%clk 0:02:56.4]} 9. c3 {[%clk 0:02:56.2]} 9... Qxe5+ {[%clk
0:02:56]} 10. Be2 {[%clk 0:02:52]} 10... Bc5 {[%clk 0:02:52.5]} 11. O-O {[%clk
0:02:49.5]} 11... Ne7 {[%clk 0:02:50.5]} 12. Re1 {[%clk 0:02:42.5]} 12... Qc7
{[%clk 0:02:43.1]} 13. Ngh5 {[%clk 0:02:09.8]} 13... O-O {[%clk 0:02:36.4]} 14.
Nxg6 {[%clk 0:01:44.7]} 14... Nxg6 {[%clk 0:02:34]} 15. Bg4 {[%clk 0:01:26.7]}
15... Nde5 {[%clk 0:02:30.2]} 16. Bf5 {[%clk 0:01:27.7]} 16... Rad8 {[%clk
0:01:59.7]} 17. Qb3 {[%clk 0:01:27.7]} 17... Qb6 {[%clk 0:01:55.3]} 18. Qc2
{[%clk 0:01:10.8]} 18... Nc4 {[%clk 0:01:21.8]} 19. Bg5 {[%clk 0:00:55.2]} 19...
Rde8 {[%clk 0:01:03.8]} 20. b4 {[%clk 0:00:40.5]} 20... Bd6 {[%clk 0:00:59.1]}
21. Qd3 {[%clk 0:00:22.3]} 21... Qb5 {[%clk 0:00:21.9]} 22. a4 {[%clk
0:00:20.2]} 22... Qd5 {[%clk 0:00:22.7]} 23. Qh3 {[%clk 0:00:17.8]} 23... Re5
{[%clk 0:00:14.1]} 24. Bxg6 {[%clk 0:00:08.7]} 24... hxg6 {[%clk 0:00:13.7]} 25.
Ng3 {[%clk 0:00:03.9]} 25... Rxg5 {[%clk 0:00:13.8]} 26. Rad1 {[%clk 0:00:03.4]}
26... Bxg3 {[%clk 0:00:06.4]} 0-1

[Event "*** Titled Tuesday Blitz"]
[Site "Chess.com"]
[Date "2019.09.03"]
[Round "2"]
[White "FedaMaster"]
[Black "VladDobrov"]
[Result "0-1"]
[WhiteElo "2592"]
[BlackElo "2881"]
[TimeControl "180+2"]
[EndTime "15:22:48 PDT"]
[Termination "VladDobrov won by checkmate"]

1. e4 {[%clk 0:03:01.9]} 1... c5 {[%clk 0:03:00.8]} 2. Nf3 {[%clk 0:03:01.3]}
2... Nc6 {[%clk 0:03:01.4]} 3. d4 {[%clk 0:03:01.5]} 3... cxd4 {[%clk
0:03:03.3]} 4. Nxd4 {[%clk 0:03:02.7]} 4... Qb6 {[%clk 0:03:05.1]} 5. Nb3 {[%clk
0:03:02.2]} 5... Nf6 {[%clk 0:03:06.1]} 6. Nc3 {[%clk 0:02:58.6]} 6... e6 {[%clk
0:03:07.3]} 7. Bd3 {[%clk 0:02:57.9]} 7... h5 {[%clk 0:03:05.9]} 8. a3 {[%clk
0:02:36.1]} 8... a6 {[%clk 0:03:06.5]} 9. Qe2 {[%clk 0:02:35.7]} 9... Qc7 {[%clk
0:03:05]} 10. Bd2 {[%clk 0:02:35.2]} 10... b5 {[%clk 0:03:06]} 11. O-O-O {[%clk
0:02:10.1]} 11... Be7 {[%clk 0:02:50.2]} 12. f4 {[%clk 0:01:56.8]} 12... d6
{[%clk 0:02:51.3]} 13. Rhe1 {[%clk 0:01:42.9]} 13... b4 {[%clk 0:02:47]} 14.
axb4 {[%clk 0:01:18.1]} 14... Nxb4 {[%clk 0:02:48.9]} 15. e5 {[%clk 0:01:13.7]}
15... dxe5 {[%clk 0:02:49.7]} 16. fxe5 {[%clk 0:01:13.5]} 16... Nd7 {[%clk
0:02:39.3]} 17. Be4 {[%clk 0:00:54.3]} 17... Rb8 {[%clk 0:02:39.8]} 18. Bf4
{[%clk 0:00:43]} 18... g5 {[%clk 0:02:27]} 19. Be3 {[%clk 0:00:38.9]} 19... Nxe5
{[%clk 0:01:30.3]} 20. Bd4 {[%clk 0:00:39.7]} 20... Bf6 {[%clk 0:01:30.4]} 21.
Rf1 {[%clk 0:00:40.6]} 21... Bg7 {[%clk 0:01:30.5]} 22. Kb1 {[%clk 0:00:30.4]}
22... f5 {[%clk 0:01:17.7]} 23. Bf3 {[%clk 0:00:14.2]} 23... g4 {[%clk
0:01:17.8]} 24. Bd5 {[%clk 0:00:08.3]} 24... exd5 {[%clk 0:00:53.9]} 25. Rfe1
{[%clk 0:00:08.8]} 25... Nc6 {[%clk 0:00:52.2]} 26. Nxd5 {[%clk 0:00:09]} 26...
Qf7 {[%clk 0:00:48.6]} 27. Bc5 {[%clk 0:00:09.3]} 27... Be6 {[%clk 0:00:45.7]}
28. Bd6 {[%clk 0:00:07.2]} 28... Rxb3 {[%clk 0:00:40.8]} 29. Bxe5 {[%clk
0:00:07.4]} 29... Bxe5 {[%clk 0:00:38.8]} 30. Nf4 {[%clk 0:00:06.7]} 30... Rxb2+
{[%clk 0:00:39.6]} 31. Kc1 {[%clk 0:00:07.6]} 31... Rb1+ {[%clk 0:00:36.4]} 32.
Kxb1 {[%clk 0:00:08]} 32... Qb7+ {[%clk 0:00:37.4]} 33. Kc1 {[%clk 0:00:08.8]}
33... Qb2+ {[%clk 0:00:39.3]} 34. Kd2 {[%clk 0:00:10.7]} 34... Bxf4+ {[%clk
0:00:33.5]} 35. Kd3 {[%clk 0:00:10.2]} 35... Nb4# {[%clk 0:00:34.9]} 0-1

[Event "*** Titled Tuesday Blitz"]
[Site "Chess.com"]
[Date "2019.09.03"]
[Round "2"]
[White "Alohamora11"]
[Black "ALEXJR20"]
[Result "1-0"]
[WhiteElo "2456"]
[BlackElo "2206"]
[TimeControl "180+2"]
[EndTime "15:22:53 PDT"]
[Termination "Alohamora11 won by checkmate"]

1. e4 {[%clk 0:03:01.9]} 1... c5 {[%clk 0:03:00.3]} 2. Nf3 {[%clk 0:03:02]} 2...
d6 {[%clk 0:03:01.3]} 3. d4 {[%clk 0:03:02.4]} 3... cxd4 {[%clk 0:03:03.2]} 4.
Nxd4 {[%clk 0:03:04.1]} 4... Nf6 {[%clk 0:03:04.5]} 5. Nc3 {[%clk 0:03:05.7]}
5... a6 {[%clk 0:03:05.8]} 6. h3 {[%clk 0:03:07.2]} 6... e5 {[%clk 0:03:05.3]}
7. Nde2 {[%clk 0:03:06.4]} 7... b5 {[%clk 0:03:06.4]} 8. g4 {[%clk 0:03:06.7]}
8... Bb7 {[%clk 0:03:04.5]} 9. Bg2 {[%clk 0:03:05.4]} 9... b4 {[%clk 0:02:57.5]}
10. Nd5 {[%clk 0:03:04.5]} 10... Nxd5 {[%clk 0:02:58.6]} 11. exd5 {[%clk
0:03:04.6]} 11... Be7 {[%clk 0:02:59.3]} 12. Ng3 {[%clk 0:02:50.4]} 12... O-O
{[%clk 0:02:54.6]} 13. Be3 {[%clk 0:02:47]} 13... Bg5 {[%clk 0:02:47.7]} 14. Qd2
{[%clk 0:02:44.1]} 14... Bxe3 {[%clk 0:02:46.7]} 15. Qxe3 {[%clk 0:02:38.1]}
15... Nd7 {[%clk 0:02:45.8]} 16. O-O-O {[%clk 0:02:31.5]} 16... a5 {[%clk
0:02:31.6]} 17. Nf5 {[%clk 0:02:27.7]} 17... Ra6 {[%clk 0:02:25.1]} 18. h4
{[%clk 0:02:15.3]} 18... a4 {[%clk 0:02:23.8]} 19. h5 {[%clk 0:02:07]} 19... b3
{[%clk 0:02:14.1]} 20. axb3 {[%clk 0:01:07.7]} 20... axb3 {[%clk 0:02:16]} 21.
c3 {[%clk 0:01:08.5]} 21... Qa5 {[%clk 0:01:20.5]} 22. Qg5 {[%clk 0:00:22.1]}
22... Qa1+ {[%clk 0:01:19.4]} 23. Kd2 {[%clk 0:00:22.9]} 23... Qxb2+ {[%clk
0:01:21.3]} 24. Ke3 {[%clk 0:00:24]} 24... Qxc3+ {[%clk 0:01:05.1]} 25. Rd3
{[%clk 0:00:23.9]} 25... Qc5+ {[%clk 0:01:06.5]} 26. Kf3 {[%clk 0:00:12.2]}
26... e4+ {[%clk 0:00:18.3]} 27. Kg3 {[%clk 0:00:12]} 27... g6 {[%clk
0:00:18.7]} 28. hxg6 {[%clk 0:00:12.2]} 28... fxg6 {[%clk 0:00:16.6]} 29. Rxh7
{[%clk 0:00:13.3]} 29... Ne5 {[%clk 0:00:10.4]} 30. Rg7+ {[%clk 0:00:12.5]}
30... Kh8 {[%clk 0:00:07.4]} 31. Qh6# {[%clk 0:00:13.8]} 1-0

[Event "*** Titled Tuesday Blitz"]
[Site "Chess.com"]
[Date "2019.09.03"]
[Round "2"]
[White "GMsKoRPioN"]
[Black "TomPolgar"]
[Result "1-0"]
[WhiteElo "2561"]
[BlackElo "2302"]
[TimeControl "180+2"]
[EndTime "15:22:55 PDT"]
[Termination "GMsKoRPioN won on time"]

1. d4 {[%clk 0:02:59.7]} 1... Nf6 {[%clk 0:03:00.7]} 2. c4 {[%clk 0:03:01.1]}
2... e6 {[%clk 0:03:01.1]} 3. Nc3 {[%clk 0:03:02.5]} 3... Bb4 {[%clk 0:03:01.8]}
4. Qc2 {[%clk 0:03:03.7]} 4... O-O {[%clk 0:03:02.5]} 5. a3 {[%clk 0:03:05.1]}
5... Bxc3+ {[%clk 0:03:02.4]} 6. Qxc3 {[%clk 0:03:07]} 6... d5 {[%clk
0:03:02.2]} 7. Nf3 {[%clk 0:03:07.9]} 7... dxc4 {[%clk 0:03:02.1]} 8. Qxc4
{[%clk 0:03:08.8]} 8... b6 {[%clk 0:03:02.8]} 9. g3 {[%clk 0:03:06.9]} 9... Bb7
{[%clk 0:02:11.9]} 10. Bg2 {[%clk 0:03:06.5]} 10... Nbd7 {[%clk 0:02:01.8]} 11.
O-O {[%clk 0:03:05.9]} 11... c5 {[%clk 0:01:40]} 12. Bg5 {[%clk 0:02:51.7]}
12... h6 {[%clk 0:01:37.4]} 13. Bf4 {[%clk 0:02:50.5]} 13... Qe7 {[%clk
0:00:44.5]} 14. Rfd1 {[%clk 0:02:45.7]} 14... Rfd8 {[%clk 0:00:43.5]} 15. b4
{[%clk 0:02:23.7]} 15... cxd4 {[%clk 0:00:31.3]} 16. Qxd4 {[%clk 0:02:20.3]}
16... Nc5 {[%clk 0:00:18]} 17. Qb2 {[%clk 0:02:18.3]} 17... Nce4 {[%clk
0:00:14.2]} 18. Ne5 {[%clk 0:02:15.4]} 18... Rac8 {[%clk 0:00:11.8]} 19. f3
{[%clk 0:02:14]} 19... Nc3 {[%clk 0:00:07.2]} 20. Rxd8+ {[%clk 0:02:11.4]} 20...
Qxd8 {[%clk 0:00:09.1]} 21. Nd3 {[%clk 0:01:41.1]} 21... Ncd5 {[%clk 0:00:06.5]}
22. Be5 {[%clk 0:01:39.6]} 22... Qe7 {[%clk 0:00:04.1]} 23. e4 {[%clk
0:01:38.6]} 23... Ne3 {[%clk 0:00:04.7]} 24. Bxf6 {[%clk 0:01:36.9]} 24... Qxf6
{[%clk 0:00:05.3]} 25. Qxf6 {[%clk 0:01:37.3]} 25... gxf6 {[%clk 0:00:07.2]} 26.
Rc1 {[%clk 0:01:31.2]} 26... Nxg2 {[%clk 0:00:04.2]} 27. Rxc8+ {[%clk
0:01:30.9]} 27... Bxc8 {[%clk 0:00:06.1]} 28. Kxg2 {[%clk 0:01:32.8]} 28... Kf8
{[%clk 0:00:04.3]} 29. Kf2 {[%clk 0:01:33.9]} 29... Ba6 {[%clk 0:00:04.5]} 30.
Nf4 {[%clk 0:01:33.5]} 30... Ke7 {[%clk 0:00:03.9]} 31. Ke3 {[%clk 0:01:34.8]}
31... Kd6 {[%clk 0:00:02.8]} 32. h4 {[%clk 0:01:36.1]} 32... Bc4 {[%clk
0:00:03]} 33. Nh5 {[%clk 0:01:35.3]} 33... Ke7 {[%clk 0:00:03.4]} 34. g4 {[%clk
0:01:36.7]} 34... Bb3 {[%clk 0:00:03.1]} 35. Ng3 {[%clk 0:01:36.7]} 35... Bc4
{[%clk 0:00:03.2]} 36. Kd4 {[%clk 0:01:35.1]} 36... Bb3 {[%clk 0:00:04]} 37. Nf1
{[%clk 0:01:30.9]} 37... Bd1 {[%clk 0:00:04.7]} 38. Nd2 {[%clk 0:01:32.3]} 38...
Kd6 {[%clk 0:00:03.8]} 39. Nc4+ {[%clk 0:01:28]} 39... Ke7 {[%clk 0:00:04.9]}
40. Ke3 {[%clk 0:01:29.9]} 40... Bb3 {[%clk 0:00:05.1]} 41. Nd2 {[%clk 0:01:31]}
41... Bd1 {[%clk 0:00:05.9]} 42. Nb1 {[%clk 0:01:30.9]} 42... Bb3 {[%clk
0:00:04.4]} 43. Nc3 {[%clk 0:01:32.2]} 43... Bc2 {[%clk 0:00:04.7]} 44. Nb5
{[%clk 0:01:32.8]} 44... a6 {[%clk 0:00:05.1]} 45. Nd4 {[%clk 0:01:34.7]} 45...
Kd6 {[%clk 0:00:05.1]} 46. Nxc2 {[%clk 0:01:34.1]} 1-0

[Event "*** Titled Tuesday Blitz"]
[Site "Chess.com"]
[Date "2019.09.03"]
[Round "2"]
[White "HanSchut"]
[Black "boasovietica"]
[Result "0-1"]
[WhiteElo "2215"]
[BlackElo "2459"]
[TimeControl "180+2"]
[EndTime "15:23:00 PDT"]
[Termination "boasovietica won by resignation"]

1. e4 {[%clk 0:03:01.9]} 1... e5 {[%clk 0:03:00.7]} 2. Nf3 {[%clk 0:03:02.3]}
2... Nc6 {[%clk 0:03:01.6]} 3. Bc4 {[%clk 0:03:03.8]} 3... Bc5 {[%clk 0:03:02]}
4. b4 {[%clk 0:03:04.9]} 4... Bxb4 {[%clk 0:03:01.7]} 5. c3 {[%clk 0:03:06.5]}
5... Be7 {[%clk 0:03:02.5]} 6. d4 {[%clk 0:03:07.3]} 6... d6 {[%clk 0:03:03.4]}
7. Qb3 {[%clk 0:03:06.6]} 7... Na5 {[%clk 0:03:04.8]} 8. Bxf7+ {[%clk
0:03:07.1]} 8... Kf8 {[%clk 0:03:06.1]} 9. Qa4 {[%clk 0:03:08.6]} 9... Kxf7
{[%clk 0:03:05.4]} 10. Qxa5 {[%clk 0:03:09.5]} 10... b6 {[%clk 0:03:06.7]} 11.
Qa4 {[%clk 0:03:02.9]} 11... Bf6 {[%clk 0:02:59.6]} 12. O-O {[%clk 0:02:54.5]}
12... Bd7 {[%clk 0:02:48.3]} 13. Qc2 {[%clk 0:02:45.8]} 13... Ne7 {[%clk
0:02:28.3]} 14. Be3 {[%clk 0:02:44.5]} 14... Ng6 {[%clk 0:02:28.2]} 15. Nbd2
{[%clk 0:02:40.5]} 15... Rf8 {[%clk 0:02:26.5]} 16. a4 {[%clk 0:02:32]} 16... a5
{[%clk 0:02:25.4]} 17. Rad1 {[%clk 0:02:21.9]} 17... Qe7 {[%clk 0:02:22.9]} 18.
Nc4 {[%clk 0:01:52.7]} 18... Kg8 {[%clk 0:02:11.9]} 19. Nfd2 {[%clk 0:01:36.8]}
19... Rae8 {[%clk 0:01:58.7]} 20. f4 {[%clk 0:01:36.6]} 20... exf4 {[%clk
0:01:55.3]} 21. Bxf4 {[%clk 0:01:37.6]} 21... Nxf4 {[%clk 0:01:55]} 22. Rxf4
{[%clk 0:01:39.5]} 22... Bxd4+ {[%clk 0:01:54.1]} 23. cxd4 {[%clk 0:01:37.9]}
23... Rxf4 {[%clk 0:01:55.3]} 24. Re1 {[%clk 0:01:31.2]} 24... Kh8 {[%clk
0:01:48.8]} 25. Ne3 {[%clk 0:01:31.4]} 25... c6 {[%clk 0:01:29.4]} 26. Nec4
{[%clk 0:01:24.7]} 26... Qf6 {[%clk 0:01:22.3]} 27. e5 {[%clk 0:01:15.6]} 27...
dxe5 {[%clk 0:01:19.6]} 28. dxe5 {[%clk 0:01:16.5]} 28... Bf5 {[%clk 0:00:53.8]}
29. Qc1 {[%clk 0:01:05.1]} 29... Qd8 {[%clk 0:00:50.3]} 30. Nd6 {[%clk
0:00:57.3]} 30... Rf8 {[%clk 0:00:43.2]} 31. N2c4 {[%clk 0:00:54.1]} 31... Be6
{[%clk 0:00:41.1]} 32. g3 {[%clk 0:00:46.6]} 32... Rf2 {[%clk 0:00:39.7]} 33.
Qe3 {[%clk 0:00:43.7]} 33... b5 {[%clk 0:00:19.5]} 34. Nb7 {[%clk 0:00:36.3]}
34... Qc7 {[%clk 0:00:16.4]} 35. Ncd6 {[%clk 0:00:37.7]} 35... Ra2 {[%clk
0:00:11.6]} 36. Nc5 {[%clk 0:00:35.1]} 36... Bd5 {[%clk 0:00:11.6]} 37. Rf1
{[%clk 0:00:33.7]} 37... Rg2+ {[%clk 0:00:11.7]} 38. Kh1 {[%clk 0:00:33.7]}
38... Rxg3+ {[%clk 0:00:12]} 0-1

[Event "*** Titled Tuesday Blitz"]
[Site "Chess.com"]
[Date "2019.09.03"]
[Round "2"]
[White "BASSU1"]
[Black "ckgchess"]
[Result "1-0"]
[WhiteElo "2536"]
[BlackElo "2735"]
[TimeControl "180+2"]
[EndTime "15:23:02 PDT"]
[Termination "BASSU1 won by checkmate"]

1. e4 {[%clk 0:03:01.9]} 1... c5 {[%clk 0:03:00.9]} 2. Nf3 {[%clk 0:03:01.5]}
2... d6 {[%clk 0:03:02.2]} 3. d4 {[%clk 0:02:59.1]} 3... cxd4 {[%clk 0:03:04.1]}
4. Nxd4 {[%clk 0:03:01]} 4... Nf6 {[%clk 0:03:05.6]} 5. Nc3 {[%clk 0:03:01.1]}
5... a6 {[%clk 0:03:07.1]} 6. h3 {[%clk 0:02:49.5]} 6... e5 {[%clk 0:03:07.5]}
7. Nb3 {[%clk 0:02:46.3]} 7... Be6 {[%clk 0:03:03.4]} 8. f4 {[%clk 0:02:45.4]}
8... exf4 {[%clk 0:03:00.2]} 9. Bxf4 {[%clk 0:02:45.7]} 9... Nc6 {[%clk
0:02:59.6]} 10. Qe2 {[%clk 0:02:41]} 10... Nb4 {[%clk 0:02:54.2]} 11. O-O-O
{[%clk 0:02:37.8]} 11... Rc8 {[%clk 0:02:49.9]} 12. a3 {[%clk 0:02:27.2]} 12...
Bxb3 {[%clk 0:02:22.3]} 13. axb4 {[%clk 0:02:20.9]} 13... Be6 {[%clk 0:02:19.5]}
14. e5 {[%clk 0:02:16.8]} 14... Nd7 {[%clk 0:02:13.2]} 15. exd6 {[%clk
0:02:14.4]} 15... g5 {[%clk 0:02:10.8]} 16. Be5 {[%clk 0:02:10.5]} 16... Rg8
{[%clk 0:01:49.9]} 17. Nd5 {[%clk 0:01:25.3]} 17... Nxe5 {[%clk 0:01:09.1]} 18.
Qxe5 {[%clk 0:01:07.7]} 18... Bg7 {[%clk 0:01:10]} 19. Qg3 {[%clk 0:00:57.4]}
19... Kf8 {[%clk 0:00:33.7]} 20. c3 {[%clk 0:00:54.9]} 20... a5 {[%clk
0:00:34.3]} 21. b5 {[%clk 0:00:48]} 21... a4 {[%clk 0:00:29.3]} 22. Ne7 {[%clk
0:00:40.1]} 22... a3 {[%clk 0:00:26]} 23. Nxc8 {[%clk 0:00:39.8]} 23... axb2+
{[%clk 0:00:27.9]} 24. Kxb2 {[%clk 0:00:39.9]} 24... Qa5 {[%clk 0:00:18.3]} 25.
d7 {[%clk 0:00:25.3]} 25... Qa2+ {[%clk 0:00:17.8]} 26. Kc1 {[%clk 0:00:25.1]}
26... Qa1+ {[%clk 0:00:18.4]} 27. Kd2 {[%clk 0:00:15.4]} 27... Qb2+ {[%clk
0:00:18]} 28. Ke3 {[%clk 0:00:15.7]} 28... Qxc3+ {[%clk 0:00:16.1]} 29. Bd3
{[%clk 0:00:13.6]} 29... Bd4+ {[%clk 0:00:05.1]} 30. Ke2 {[%clk 0:00:14.3]}
30... Bxd7 {[%clk 0:00:06.5]} 31. Qd6+ {[%clk 0:00:14.9]} 31... Ke8 {[%clk
0:00:08.2]} 32. Qe7# {[%clk 0:00:16]} 1-0

[Event "*** Titled Tuesday Blitz"]
[Site "Chess.com"]
[Date "2019.09.03"]
[Round "2"]
[White "Morscas"]
[Black "ElGasanov"]
[Result "1-0"]
[WhiteElo "2257"]
[BlackElo "2672"]
[TimeControl "180+2"]
[EndTime "15:23:06 PDT"]
[Termination "Morscas won by resignation"]

1. e4 {[%clk 0:03:01.9]} 1... c5 {[%clk 0:02:59.5]} 2. Nf3 {[%clk 0:03:01.7]}
2... Nf6 {[%clk 0:03:01]} 3. Nc3 {[%clk 0:03:00.9]} 3... Nc6 {[%clk 0:02:54.4]}
4. Bb5 {[%clk 0:02:55.6]} 4... Qc7 {[%clk 0:02:55]} 5. O-O {[%clk 0:02:55.2]}
5... Nd4 {[%clk 0:02:55.5]} 6. Re1 {[%clk 0:02:45.8]} 6... a6 {[%clk 0:02:56.4]}
7. Bf1 {[%clk 0:02:46]} 7... Ng4 {[%clk 0:02:56.8]} 8. g3 {[%clk 0:02:45]} 8...
Nxf3+ {[%clk 0:02:58]} 9. Qxf3 {[%clk 0:02:44.8]} 9... Ne5 {[%clk 0:02:59.6]}
10. Qe2 {[%clk 0:02:42.5]} 10... e6 {[%clk 0:03:00]} 11. d3 {[%clk 0:02:40.9]}
11... d6 {[%clk 0:02:57.5]} 12. Bg2 {[%clk 0:02:41.1]} 12... Be7 {[%clk
0:02:56.2]} 13. f4 {[%clk 0:02:41.4]} 13... Nc6 {[%clk 0:02:56.5]} 14. Qf2
{[%clk 0:02:40.9]} 14... O-O {[%clk 0:02:54.3]} 15. Nd1 {[%clk 0:02:40.3]} 15...
b5 {[%clk 0:02:50.2]} 16. Ne3 {[%clk 0:02:40.9]} 16... Bb7 {[%clk 0:02:44]} 17.
g4 {[%clk 0:02:22.3]} 17... b4 {[%clk 0:02:40.6]} 18. g5 {[%clk 0:02:17.4]}
18... f6 {[%clk 0:02:38.3]} 19. Bh3 {[%clk 0:02:07.4]} 19... Qd7 {[%clk
0:02:28.3]} 20. Nd5 {[%clk 0:02:07.1]} 20... Bd8 {[%clk 0:02:27.4]} 21. gxf6
{[%clk 0:02:05.4]} 21... Qf7 {[%clk 0:02:18.2]} 22. Qg2 {[%clk 0:01:46.1]} 22...
Nd4 {[%clk 0:02:06.9]} 23. fxg7 {[%clk 0:01:41.8]} 23... Qxg7 {[%clk 0:02:07.9]}
24. Qxg7+ {[%clk 0:01:38.1]} 24... Kxg7 {[%clk 0:02:09.2]} 25. Ne3 {[%clk
0:01:39.7]} 25... Nf3+ {[%clk 0:02:10.4]} 26. Kf2 {[%clk 0:01:39.7]} 26... Nxe1
{[%clk 0:02:07.4]} 27. Kxe1 {[%clk 0:01:41.6]} 27... Rxf4 {[%clk 0:02:03.5]} 28.
Bxe6 {[%clk 0:01:39.8]} 28... Bh4+ {[%clk 0:02:04]} 29. Kd1 {[%clk 0:01:36.2]}
29... Raf8 {[%clk 0:01:58.1]} 30. Nf5+ {[%clk 0:01:32.7]} 30... R8xf5 {[%clk
0:01:58.7]} 31. Bxf5 {[%clk 0:01:27.2]} 31... Rf1+ {[%clk 0:01:51.2]} 32. Ke2
{[%clk 0:01:28.1]} 32... Re1+ {[%clk 0:01:39.9]} 33. Kf3 {[%clk 0:01:29.3]}
33... Kf6 {[%clk 0:01:18.1]} 34. Kg4 {[%clk 0:01:22.6]} 34... Bf2 {[%clk
0:01:05.6]} 35. Bg5+ {[%clk 0:01:21.7]} 35... Kf7 {[%clk 0:00:56.2]} 36. Rxe1
{[%clk 0:01:23.6]} 36... Bxe1 {[%clk 0:00:57.6]} 37. Bxh7 {[%clk 0:01:24]} 37...
d5 {[%clk 0:00:57.3]} 38. e5 {[%clk 0:01:22.8]} 38... c4 {[%clk 0:00:51.7]} 39.
Bf5 {[%clk 0:01:15.6]} 39... Bc6 {[%clk 0:00:43.8]} 40. h4 {[%clk 0:01:11.7]}
40... a5 {[%clk 0:00:42.2]} 41. h5 {[%clk 0:01:12.3]} 41... a4 {[%clk
0:00:42.4]} 42. h6 {[%clk 0:01:07.7]} 42... b3 {[%clk 0:00:42.4]} 43. cxb3
{[%clk 0:01:05.5]} 43... a3 {[%clk 0:00:38.6]} 44. bxa3 {[%clk 0:01:03]} 44...
c3 {[%clk 0:00:39.9]} 45. d4 {[%clk 0:01:00.7]} 45... Bd2 {[%clk 0:00:38.9]} 46.
h7 {[%clk 0:00:55.6]} 1-0